bitfinex/quotes_SOLUSD_20230116
["timestamp","ask_amount","ask_price","bid_price","bid_amount"]
[1673832654470,32.33,23.207,23.175,33.12]
[1673832654797,20.0,23.205,23.176,20.0]
[1673832654981,52.34,23.205,23.177,16.53]
[1673832655194,52.34,23.205,23.178,20.0]
[1673832655614,73.80196354,23.205,23.179,17.39]
[1673832655839,203.10196354,23.205,23.18,20.0]
[1673832656050,126.3601,23.204,23.18,20.0]
[1673832656264,32.34,23.203,23.18,38.41240077]
[1673832656489,20.0,23.201,23.18,20.0]
[1673832656676,20.0,23.201,23.173,57.87240077]
[1673832656885,17.0,23.2,23.174,17.0]
[1673832657207,20.0,23.201,23.175,39.16]
[1673832657413,109.3601,23.204,23.175,39.16]
[1673832657414,23.71,23.19,23.175,42.39712986]
[1673832657644,17.0,23.174,23.156,17.264437]
[1673832657856,23.71,23.17,23.156,17.264437]
[1673832658052,57.35608,23.169,23.156,17.264437]
[1673832658384,24.96608,23.168,23.156,17.264437]
[1673832658583,57.35608,23.167,23.156,17.264437]
[1673832658941,20.0,23.165,23.156,1.152437]
[1673832659112,37.0,23.164,23.156,1.152437]
[1673832659300,41.96608,23.164,23.156,0.002437]
[1673832659510,90.43979441,23.164,23.156,0.002437]
[1673832659719,53.34445574,23.163,23.156,0.002437]
[1673832660045,17.0,23.162,23.156,0.002437]
[1673832660788,29.56776525,23.161,23.156,0.002437]
[1673832661095,20.0,23.159,23.14,51.9]
[1673832661506,17.0,23.158,23.14,51.9]
[1673832661708,46.56776525,23.158,23.14,51.9]
[1673832661916,17.0,23.158,23.14,51.9]
[1673832662121,53.86196354,23.162,23.14,51.9]
[1673832662350,32.4,23.162,23.14,51.9]
[1673832662546,20.0,23.168,23.141,20.0]
[1673832662547,32.39,23.163,23.141,20.0]
[1673832662781,21.46196354,23.171,23.141,20.0]
[1673832662992,4.96608,23.171,23.141,20.0]
[1673832663219,4.96608,23.171,23.142,37.0]
[1673832663630,4.96608,23.171,23.143,20.0]
[1673832663835,4.96608,23.171,23.144,37.0]
[1673832664272,26.42804354,23.171,23.144,20.0]
[1673832664471,32.38,23.17,23.144,20.0]
[1673832664692,4.96608,23.17,23.145,20.0]
[1673832665111,20.0,23.168,23.144,20.0]
[1673832665335,17.0,23.167,23.144,20.0]
[1673832666049,17.0,23.169,23.144,20.0]
[1673832666261,4.96608,23.17,23.144,20.0]
[1673832666472,254.0843,23.177,23.15,23.75]
[1673832666705,221.7143,23.177,23.152,20.0]
[1673832666897,221.7143,23.177,23.153,20.0]
[1673832667111,32.36,23.186,23.154,17.0]
[1673832667430,20.0,23.185,23.16,23.62]
[1673832667738,40.0,23.185,23.161,37.0]
[1673832668055,20.0,23.185,23.161,37.0]
[1673832668796,20.0,23.185,23.161,20.0]
[1673832669013,19.5,23.185,23.161,20.0]
[1673832670690,20.0,23.187,23.163,20.0]
[1673832670892,20.0,23.187,23.164,17.0]
[1673832671100,20.0,23.187,23.165,20.0]
[1673832671298,75.99580879,23.186,23.16,23.62]
[1673832671505,4.96608,23.186,23.16,23.62]
[1673832671943,17.0,23.185,23.16,23.62]
[1673832672134,20.0,23.184,23.16,23.62]
[1673832672340,17.0,23.183,23.16,23.62]
[1673832672574,17.0,23.183,23.161,17.0]
[1673832672791,17.0,23.183,23.162,20.0]
[1673832673516,21.46196354,23.182,23.16,23.62]
[1673832673736,49.37,23.181,23.16,23.62]
[1673832673945,17.0,23.181,23.16,23.62]
[1673832675115,17.0,23.181,23.161,17.0]
[1673832675508,17.0,23.181,23.162,20.0]
[1673832675850,20.0,23.185,23.163,37.0]
[1673832676044,17.0,23.184,23.163,37.0]
[1673832676257,20.0,23.185,23.163,37.0]
[1673832677242,20.0,23.187,23.163,37.0]
[1673832677425,20.0,23.188,23.164,20.0]
[1673832677633,43.50437729,23.268,23.164,20.0]
[1673832677634,32.35,23.198,23.17,23.62]
[1673832677834,32.35,23.198,23.171,38.096]
[1673832677835,141.2257,23.198,23.171,38.096]
[1673832678032,32.34,23.202,23.171,39.289]
[1673832678272,21.46196354,23.206,23.18,23.74]
[1673832678273,32.34,23.204,23.18,23.74]
[1673832678482,141.2157,23.204,23.181,37.0]
[1673832678689,141.2157,23.204,23.181,54.3952792]
[1673832679006,141.2157,23.204,23.182,17.3952792]
[1673832679527,32.34,23.204,23.182,17.3952792]
[1673832679765,20.0,23.209,23.183,20.0]
[1673832679766,32.33,23.207,23.183,20.0]
[1673832679928,26.42804354,23.206,23.183,20.0]
[1673832680141,20.0,23.204,23.183,20.0]
[1673832680370,20.0,23.204,23.183,45.1382792]
[1673832680575,20.0,23.204,23.183,37.3952792]
[1673832681307,20.0,23.204,23.183,17.3952792]
[1673832681510,20.0,23.204,23.17,23.74]
[1673832681511,20.0,23.202,23.17,23.74]
[1673832681739,32.34,23.201,23.179,34.7905584]
[1673832681938,32.34,23.201,23.179,17.3952792]
[1673832682152,17.0,23.2,23.179,17.3952792]
[1673832682372,20.0,23.199,23.171,7.088]
[1673832682555,17.0,23.198,23.171,7.088]
[1673832682775,17.0,23.198,23.172,37.3952792]
[1673832682985,20.0,23.197,23.173,8.122]
[1673832683197,17.0,23.196,23.174,20.0]
[1673832683424,17.0,23.196,23.174,37.3952792]
[1673832683607,20.0,23.197,23.175,51.7905584]
[1673832683846,122.49978,23.199,23.176,40.0]
[1673832684039,20.0,23.204,23.18,23.66]
[1673832684251,52.34,23.204,23.181,20.0]
[1673832684465,23.75,23.2,23.144,102.23692322]
[1673832684774,23.66,23.178,23.14,69.183469]
[1673832685000,23.75,23.16,23.14,51.9]
[1673832685213,57.36608,23.159,23.14,51.9]
[1673832685444,4.96608,23.158,23.14,51.9]
[1673832685644,52.4,23.157,23.14,51.9]
[1673832685961,24.96608,23.156,23.14,51.9]
[1673832686175,129.3,23.154,23.14,69.189885]
[1673832686498,20.0,23.152,23.14,69.189885]
[1673832686811,17.0,23.151,23.14,69.189885]
[1673832687645,76.16,23.15,23.14,69.189885]
[1673832687852,21.96608,23.149,23.14,69.189885]
[1673832688052,20.0,23.147,23.14,69.189885]
[1673832688256,17.0,23.146,23.14,69.189885]
[1673832688683,37.38608,23.148,23.14,69.189885]
[1673832688684,4.96608,23.148,23.14,69.189885]
[1673832688905,23.75,23.17,23.141,17.0]
[1673832689128,20.0,23.168,23.14,69.189885]
[1673832689309,52.39,23.167,23.142,20.0]
[1673832689527,24.96608,23.166,23.14,69.189885]
[1673832689753,24.96608,23.165,23.141,20.0]
[1673832689975,20.0,23.164,23.141,20.0]
[1673832690454,17.0,23.163,23.141,20.0]
[1673832690896,20.0,23.162,23.141,20.0]
[1673832691087,17.0,23.161,23.141,20.0]
[1673832691312,52.4,23.162,23.141,20.0]
[1673832691643,20.0,23.162,23.141,20.0]
[1673832692786,17.0,23.161,23.141,20.0]
[1673832693744,32.39,23.164,23.141,20.0]
[1673832693948,24.96608,23.165,23.142,17.0]
[1673832694147,20.0,23.164,23.141,20.0]
[1673832694355,20.0,23.162,23.141,20.0]
[1673832694579,129.3,23.159,23.14,69.189885]
[1673832694894,186.66608,23.158,23.14,69.189885]
[1673832695089,4.96608,23.157,23.14,69.189885]
[1673832695295,20.0,23.155,23.14,69.189885]
[1673832695504,54.37608,23.154,23.14,69.189885]
[1673832695716,20.0,23.153,23.14,69.189885]
[1673832695935,17.0,23.152,23.14,69.189885]
[1673832696142,17.0,23.152,23.14,51.9]
[1673832696493,23.74,23.15,23.14,51.9]
[1673832696672,20.0,23.148,23.14,36.7948]
[1673832696885,54.38608,23.147,23.14,36.7948]
[1673832697306,20.0,23.146,23.14,36.7948]
[1673832697521,17.0,23.145,23.14,36.7948]
[1673832698443,17.0,23.146,23.14,0.0001]
[1673832699070,20.0,23.145,23.14,0.0001]
[1673832699284,17.0,23.144,23.14,0.0001]
[1673832700484,53.88196354,23.143,23.14,0.0001]
[1673832700678,20.0,23.141,23.14,0.0001]
[1673832700869,37.0,23.141,23.14,0.0001]
[1673832702021,94.65026296,23.141,23.129,17.295471]
[1673832702328,20.0,23.139,23.129,17.295471]
[1673832702558,20.0,23.137,23.1,133.7855]
[1673832702786,20.0,23.137,23.106,20.0]
[1673832702787,23.74,23.13,23.106,20.0]
[1673832702970,23.74,23.13,23.105,113.9193]
[1673832703176,23.74,23.13,23.114,17.304313]
[1673832704232,20.0,23.128,23.114,17.304313]
[1673832704665,17.0,23.127,23.114,17.304313]
[1673832705623,23.74,23.13,23.114,17.304313]
[1673832705931,24.96608,23.136,23.114,17.304313]
[1673832706130,36.18829942,23.129,23.114,17.304313]
[1673832706538,20.0,23.134,23.114,17.304313]
[1673832706972,17.0,23.133,23.114,17.304313]
[1673832707600,23.7,23.13,23.114,17.304313]
[1673832707841,21.96608,23.129,23.114,17.304313]
[1673832708039,4.96608,23.128,23.114,17.304313]
[1673832708255,20.0,23.126,23.114,17.304313]
[1673832708449,20.0,23.124,23.114,17.304313]
[1673832708659,24.96608,23.124,23.114,17.304313]
[1673832709189,17.0,23.123,23.114,17.304313]
[1673832710238,4.96608,23.124,23.114,17.304313]
[1673832710560,20.0,23.127,23.114,17.304313]
[1673832710763,32.44,23.133,23.114,17.304313]
[1673832710987,43.54,23.14,23.114,17.304313]
[1673832711292,129.3,23.136,23.114,17.304313]
[1673832711510,20.0,23.134,23.114,17.304313]
[1673832711695,23.74,23.13,23.114,17.304313]
[1673832711907,4.96608,23.129,23.114,17.304313]
[1673832712117,20.0,23.127,23.114,17.304313]
[1673832712364,21.96608,23.126,23.114,17.304313]
[1673832712749,23.74,23.12,23.08,23.89]
[1673832712960,54.42608,23.119,23.091,112.4282]
[1673832713183,20.0,23.117,23.091,112.4282]
[1673832713397,74.42608,23.116,23.091,112.4282]
[1673832713609,37.0,23.116,23.091,112.4282]
[1673832713936,37.0,23.116,23.092,20.0]
[1673832714535,32.45,23.126,23.092,20.0]
[1673832714763,32.44,23.129,23.093,17.0]
[1673832715099,24.96608,23.126,23.094,20.0]
[1673832715274,37.41608,23.125,23.095,17.0]
[1673832715482,4.96608,23.124,23.095,17.0]
[1673832715688,4.96608,23.124,23.096,20.0]
[1673832715907,17.0,23.123,23.097,17.0]
[1673832716350,17.0,23.123,23.098,20.0]
[1673832716881,17.0,23.123,23.096,20.0]
[1673832717692,17.0,23.123,23.095,20.0]
[1673832717911,32.45,23.122,23.093,20.0]
[1673832718119,17.0,23.121,23.094,20.0]
[1673832718339,21.96608,23.123,23.095,20.0]
[1673832718649,17.0,23.123,23.095,20.0]
[1673832718842,17.0,23.125,23.095,20.0]
[1673832719084,20.0,23.125,23.095,20.0]
[1673832719281,17.0,23.124,23.095,20.0]
[1673832720228,43.42804354,23.124,23.095,20.0]
[1673832720454,32.45,23.123,23.095,20.0]
[1673832720668,20.0,23.121,23.093,20.0]
[1673832720865,17.0,23.12,23.093,20.0]
[1673832721397,32.45,23.126,23.094,33.43426164]
[1673832721624,52.44,23.132,23.095,20.0]
[1673832721818,57.40608,23.132,23.096,17.0]
[1673832722021,57.40608,23.132,23.098,20.0]
[1673832722231,57.40608,23.132,23.099,17.0]
[1673832722455,57.40608,23.132,23.101,20.0]
[1673832722648,57.40608,23.132,23.102,17.0]
[1673832722870,57.40608,23.132,23.102,37.0]
[1673832723212,32.43,23.136,23.103,20.0]
[1673832723400,32.43,23.136,23.104,17.0]
[1673832723615,32.43,23.136,23.105,20.0]
[1673832723932,32.43,23.136,23.106,17.0]
[1673832724117,32.43,23.138,23.107,20.0]
[1673832724325,32.43,23.138,23.108,37.0]
[1673832724549,32.43,23.136,23.108,37.0]
[1673832724768,32.43,23.138,23.109,20.0]
[1673832724963,20.0,23.135,23.11,17.0]
[1673832725182,17.0,23.134,23.11,33.43426164]
[1673832725493,17.0,23.134,23.111,16.43426164]
[1673832725898,20.0,23.132,23.111,16.43426164]
[1673832726117,17.0,23.131,23.111,16.43426164]
[1673832726336,20.0,23.132,23.112,17.0]
[1673832727092,32.43,23.134,23.113,16.43426164]
[1673832727279,52.43,23.139,23.114,20.0]
[1673832727606,52.43,23.139,23.114,37.0]
[1673832727824,52.43,23.139,23.115,16.43426164]
[1673832728139,20.0,23.139,23.114,20.0]
[1673832728329,4.96608,23.136,23.105,16.43426164]
[1673832728539,4.96608,23.136,23.107,20.0]
[1673832728860,17.0,23.135,23.108,20.0]
[1673832729079,52.43,23.134,23.105,16.43426164]
[1673832729293,23.58,23.13,23.103,113.2091]
[1673832729593,49.44,23.129,23.103,113.2091]
[1673832729824,54.40608,23.129,23.103,113.2091]
[1673832730007,20.0,23.128,23.103,113.2091]
[1673832730222,54.40608,23.127,23.103,113.2091]
[1673832730430,54.40608,23.127,23.103,129.64336164]
[1673832730645,20.0,23.126,23.103,129.64336164]
[1673832730858,17.0,23.125,23.103,129.64336164]
[1673832731472,17.0,23.125,23.103,113.2091]
[1673832731689,32.45,23.124,23.103,113.2091]
[1673832731911,20.0,23.122,23.103,113.2091]
[1673832732327,20.0,23.122,23.103,129.64336164]
[1673832733067,17.0,23.121,23.103,129.64336164]
[1673832733682,17.0,23.121,23.103,113.2091]
[1673832734131,49.45,23.121,23.103,113.2091]
[1673832734523,4.96608,23.12,23.103,113.2091]
[1673832734759,49.46,23.119,23.103,113.2091]
[1673832734952,20.0,23.118,23.103,113.2091]
[1673832735165,17.0,23.117,23.103,113.2091]
[1673832735382,20.0,23.118,23.103,113.2091]
[1673832735720,20.0,23.118,23.091,17.316439]
[1673832735908,4.96608,23.117,23.092,138.2781]
[1673832736123,37.42608,23.117,23.092,118.2781]
[1673832736333,21.46196354,23.116,23.092,118.2781]
[1673832736660,37.42608,23.115,23.092,118.2781]
[1673832736857,21.96608,23.114,23.092,118.2781]
[1673832737499,4.96608,23.114,23.092,118.2781]
[1673832738745,17.0,23.113,23.092,118.2781]
[1673832738945,20.0,23.112,23.092,118.2781]
[1673832739162,17.0,23.111,23.092,118.2781]
[1673832739491,129.3,23.109,23.091,17.316439]
[1673832739688,28.77608,23.11,23.073,118.3634]
[1673832739689,23.71,23.1,23.073,118.3634]
[1673832739904,57.44608,23.099,23.073,118.3634]
[1673832740109,17.0,23.098,23.078,86.70111]
[1673832740429,24.96608,23.099,23.078,103.13537164]
[1673832740633,17.0,23.098,23.078,103.13537164]
[1673832741256,17.0,23.098,23.078,17.32861]
[1673832741470,73.95196354,23.097,23.078,17.32861]
[1673832741672,17.0,23.096,23.078,17.32861]
[1673832742035,20.0,23.095,23.078,17.32861]
[1673832742234,20.0,23.099,23.078,17.32861]
[1673832742420,20.0,23.099,23.078,33.76287164]
[1673832743368,20.0,23.099,23.079,20.0]
[1673832743578,20.0,23.106,23.079,20.0]
[1673832743782,20.0,23.106,23.081,20.0]
[1673832744118,20.0,23.106,23.08,40.01426164]
[1673832744331,32.48,23.105,23.081,16.43426164]
[1673832744527,20.0,23.106,23.081,16.43426164]
[1673832744528,4.96608,23.104,23.081,16.43426164]
[1673832744846,17.0,23.103,23.081,16.43426164]
[1673832745586,20.0,23.102,23.081,16.43426164]
[1673832745784,17.0,23.101,23.081,16.43426164]
[1673832746210,20.0,23.102,23.081,16.43426164]
[1673832746415,4.96608,23.104,23.082,17.0]
[1673832746630,20.0,23.106,23.083,20.0]
[1673832746851,20.0,23.106,23.084,17.0]
[1673832747160,20.0,23.106,23.084,33.43426164]
[1673832747352,20.0,23.106,23.085,36.43426164]
[1673832747557,20.0,23.11,23.085,36.43426164]
[1673832747775,20.0,23.11,23.087,20.0]
[1673832747983,20.0,23.11,23.088,20.0]
[1673832748210,20.0,23.11,23.089,17.0]
[1673832748824,20.0,23.11,23.09,20.0]
[1673832749477,20.0,23.11,23.091,17.0]
[1673832749680,20.0,23.11,23.092,20.0]
[1673832749869,32.46,23.116,23.092,20.0]
[1673832750624,20.0,23.118,23.092,20.0]
[1673832750625,32.45,23.123,23.093,17.0]
[1673832750820,223.1290618,23.155,23.1,23.64]
[1673832750821,52.43,23.134,23.1,23.64]
[1673832751143,4.96608,23.133,23.101,133.8891]
[1673832751366,20.0,23.129,23.101,133.8891]
[1673832751552,20.0,23.129,23.101,113.8891]
[1673832751553,37.40608,23.128,23.101,113.8891]
[1673832751762,24.96608,23.127,23.101,113.8891]
[1673832751981,37.41608,23.126,23.101,113.8891]
[1673832752189,4.96608,23.125,23.101,113.8891]
[1673832752408,37.0,23.124,23.101,113.8891]
[1673832753352,69.45,23.124,23.102,20.0]
[1673832753565,4.96608,23.123,23.102,20.0]
[1673832753772,20.0,23.124,23.103,17.0]
[1673832754192,20.0,23.124,23.104,16.35173606]
[1673832754385,20.0,23.124,23.105,17.0]
[1673832754825,20.0,23.127,23.105,17.0]
[1673832755028,32.43,23.136,23.107,20.0]
[1673832755253,32.43,23.136,23.108,37.0]
[1673832755458,32.43,23.136,23.108,53.35173606]
[1673832755659,52.43,23.134,23.108,53.35173606]
[1673832756404,20.0,23.134,23.109,16.35173606]
[1673832756594,20.0,23.134,23.11,37.0]
[1673832756824,20.0,23.134,23.111,20.0]
[1673832757025,20.0,23.134,23.112,37.0]
[1673832757374,20.0,23.134,23.112,20.0]
[1673832757987,20.0,23.132,23.112,20.0]
[1673832758172,20.0,23.132,23.106,20.0]
[1673832758511,20.0,23.132,23.107,20.0]
[1673832758831,20.0,23.132,23.109,20.0]
[1673832759036,20.0,23.132,23.11,37.0]
[1673832759223,20.0,23.132,23.11,53.35173606]
[1673832760415,20.0,23.134,23.11,53.35173606]
[1673832760631,20.0,23.134,23.111,20.0]
[1673832760837,20.0,23.134,23.112,17.0]
[1673832761370,32.43,23.136,23.111,17.0]
[1673832761585,20.0,23.137,23.112,20.0]
[1673832761755,20.0,23.137,23.113,17.0]
[1673832762507,20.0,23.137,23.112,116.1775]
[1673832762702,49.43,23.136,23.112,116.1775]
[1673832762906,20.0,23.135,23.112,116.1775]
[1673832763134,32.43,23.136,23.112,132.52923606]
[1673832763344,20.0,23.14,23.113,20.0]
[1673832763553,20.0,23.14,23.114,20.0]
[1673832763765,20.0,23.138,23.113,16.35173606]
[1673832764069,37.39608,23.137,23.112,116.1775]
[1673832764519,20.0,23.136,23.112,116.1775]
[1673832764836,70.89196354,23.135,23.112,116.1775]
[1673832765375,20.0,23.134,23.112,116.1775]
[1673832765669,49.44,23.133,23.112,116.1775]
[1673832766067,20.0,23.132,23.112,116.1775]
[1673832766282,17.0,23.131,23.112,116.1775]
[1673832766489,20.0,23.13,23.112,116.1775]
[1673832766801,17.0,23.129,23.112,116.1775]
[1673832767223,17.0,23.129,23.1,135.5722]
[1673832767445,20.0,23.127,23.101,138.815]
[1673832767663,17.0,23.126,23.101,138.815]
[1673832767996,38.46196354,23.126,23.101,138.815]
[1673832768527,38.46196354,23.126,23.101,118.815]
[1673832768528,20.0,23.124,23.101,118.815]
[1673832768699,49.45,23.123,23.101,118.815]
[1673832769110,17.0,23.123,23.101,118.815]
[1673832769851,17.0,23.123,23.102,17.0]
[1673832770280,30.45127809,23.125,23.102,17.0]
[1673832770619,32.43,23.135,23.103,36.35173606]
[1673832770790,32.43,23.138,23.104,37.0]
[1673832770997,19.78337,23.137,23.104,53.35173606]
[1673832771207,19.78337,23.137,23.11,23.81]
[1673832771419,19.78337,23.137,23.111,57.0]
[1673832771643,19.78337,23.137,23.111,53.35173606]
[1673832771885,19.78337,23.137,23.112,16.35173606]
[1673832772062,19.78337,23.137,23.113,37.0]
[1673832772496,19.78337,23.137,23.114,16.35173606]
[1673832772699,19.78337,23.137,23.115,37.0]
[1673832773129,19.78337,23.137,23.115,53.35173606]
[1673832774074,19.78337,23.137,23.115,16.35173606]
[1673832774306,32.43,23.136,23.112,110.6527]
[1673832774495,20.0,23.135,23.112,110.6527]
[1673832774700,17.0,23.134,23.112,110.6527]
[1673832775421,20.0,23.135,23.112,110.6527]
[1673832775841,20.0,23.135,23.113,17.0]
[1673832776705,52.43,23.139,23.114,20.0]
[1673832777034,20.0,23.139,23.115,33.35173606]
[1673832777220,20.0,23.139,23.116,20.0]
[1673832777423,20.0,23.139,23.117,37.0]
[1673832777739,45.3,23.14,23.118,20.0]
[1673832777963,25.3,23.14,23.119,17.0]
[1673832778158,25.3,23.14,23.12,20.0]
[1673832778403,20.0,23.139,23.12,20.0]
[1673832778906,20.0,23.139,23.115,16.35173606]
[1673832779105,20.0,23.139,23.116,20.0]
[1673832779305,54.39608,23.138,23.113,20.0]
[1673832779517,20.0,23.137,23.112,110.6527]
[1673832779727,49.43,23.136,23.112,110.6527]
[1673832779937,54.39608,23.136,23.112,110.6527]
[1673832780174,4.96608,23.135,23.112,110.6527]
[1673832780381,20.0,23.133,23.112,110.6527]
[1673832780781,20.0,23.131,23.112,110.6527]
[1673832781217,42.5,23.13,23.112,110.6527]
[1673832781536,20.0,23.129,23.112,110.6527]
[1673832781726,17.0,23.128,23.112,110.6527]
[1673832782796,194.16024199,23.169,23.112,110.6527]
[1673832782797,32.43,23.134,23.112,110.6527]
[1673832783014,18.0,23.133,23.112,127.00443606]
[1673832783857,18.0,23.133,23.112,110.6527]
[1673832784069,25.76,23.14,23.112,110.6527]
[1673832784285,52.42,23.148,23.114,20.0]
[1673832784485,25.51,23.15,23.12,25.51]
[1673832784706,25.51,23.15,23.121,20.0]
[1673832784917,25.51,23.15,23.122,17.0]
[1673832785130,25.51,23.15,23.122,33.35173606]
[1673832785348,32.4,23.158,23.131,20.0]
[1673832785679,25.76,23.16,23.132,33.35173606]
[1673832785872,25.76,23.16,23.132,53.35173606]
[1673832786058,25.76,23.16,23.133,16.35173606]
[1673832786265,116.8833,23.166,23.141,20.0]
[1673832786491,32.39,23.169,23.142,17.0]
[1673832786706,20.0,23.168,23.142,33.35173606]
[1673832786912,20.0,23.169,23.144,20.0]
[1673832787130,20.0,23.169,23.145,17.0]
[1673832787349,32.38,23.173,23.147,20.0]
[1673832787547,32.38,23.176,23.15,25.51]
[1673832787753,25.33,23.18,23.15,25.51]
[1673832787754,52.37,23.179,23.15,25.51]
[1673832788078,20.0,23.198,23.151,33.35173606]
[1673832788079,32.36,23.186,23.151,33.35173606]
[1673832788282,32.36,23.187,23.152,40.0]
[1673832788496,32.36,23.187,23.153,17.0]
[1673832788695,32.36,23.187,23.154,20.0]
[1673832788908,32.36,23.187,23.16,25.51]
[1673832789248,32.35,23.193,23.17,25.51]
[1673832789556,32.35,23.197,23.171,20.0]
[1673832789739,32.34,23.199,23.172,37.0]
[1673832789945,32.33,23.208,23.172,33.35173606]
[1673832790168,25.51,23.2,23.172,33.35173606]
[1673832790506,21.46196354,23.198,23.173,20.0]
[1673832790703,32.34,23.199,23.174,17.0]
[1673832791102,20.0,23.205,23.174,17.0]
[1673832791103,32.34,23.204,23.174,17.0]
[1673832791445,32.34,23.204,23.18,25.51]
[1673832791629,25.51,23.2,23.175,20.0]
[1673832791844,20.0,23.199,23.175,20.0]
[1673832792817,49.35,23.198,23.173,20.0]
[1673832792998,49.35,23.198,23.174,17.0]
[1673832793218,20.0,23.197,23.175,20.0]
[1673832793429,17.0,23.196,23.175,20.0]
[1673832793648,38.46196354,23.196,23.16,25.51]
[1673832793876,32.35,23.195,23.166,133.35663606]
[1673832794046,32.35,23.195,23.167,20.0]
[1673832794265,49.35,23.196,23.17,25.51]
[1673832794803,20.0,23.199,23.17,25.51]
[1673832795013,32.33,23.208,23.18,25.5]
[1673832795209,20.0,23.206,23.181,17.0]
[1673832795435,52.33,23.206,23.181,17.0]
[1673832795642,20.0,23.206,23.181,17.0]
[1673832795964,20.0,23.206,23.18,25.5]
[1673832796169,52.33,23.206,23.18,25.5]
[1673832797332,32.33,23.206,23.182,20.0]
[1673832797525,20.0,23.207,23.183,17.0]
[1673832798480,17.0,23.206,23.18,25.5]
[1673832798705,37.30608,23.205,23.176,109.6597]
[1673832798895,25.51,23.2,23.177,20.0]
[1673832799097,32.34,23.199,23.177,20.0]
[1673832799312,32.34,23.203,23.177,20.0]
[1673832799522,4.96608,23.204,23.18,25.51]
[1673832799868,32.33,23.206,23.18,25.51]
[1673832800195,32.33,23.206,23.181,20.0]
[1673832800566,32.33,23.206,23.18,25.51]
[1673832800775,20.0,23.204,23.181,20.0]
[1673832800988,32.34,23.203,23.181,20.0]
[1673832801218,41.96608,23.202,23.181,20.0]
[1673832801416,41.96608,23.202,23.176,109.6597]
[1673832801417,32.34,23.201,23.177,20.0]
[1673832801628,41.96608,23.2,23.176,109.6597]
[1673832801830,20.0,23.198,23.176,109.6597]
[1673832802049,20.0,23.196,23.176,109.6597]
[1673832802463,20.0,23.196,23.172,16.35173606]
[1673832802464,17.0,23.195,23.17,25.51]
[1673832802686,25.51,23.19,23.161,115.9698]
[1673832802908,74.32608,23.189,23.161,115.9698]
[1673832803131,20.0,23.188,23.162,20.0]
[1673832803326,17.0,23.187,23.162,36.35173606]
[1673832803516,17.0,23.187,23.163,16.35173606]
[1673832804272,17.0,23.187,23.164,17.0]